[Event "NJSK 2026 Jeugd B"]
[Site "Helmond, Netherlands"]
[Date "2026.04.27"]
[Round "3.2"]
[White "Aravindhan, Achyuth"]
[Black "Groenewoud, Joel"]
[Result "1/2-1/2"]
[TimeControl "90min/40moves + 30min + 30sec/move"]
[WhiteTitle "-"]
[BlackTitle "-"]
[WhiteFideId "1084216"]
[BlackFideId "1087746"]
[WhiteElo "2277"]
[BlackElo "2114"]

1. e4 {[%clk 01:30:59]} {[%emt 00:00:01]} c6 {[%clk 01:30:37]} {[%emt
00:00:24]} 2. d4 {[%clk 01:31:24]} {[%emt 00:00:04]} d5 {[%clk 01:30:59]}
{[%emt 00:00:08]} 3. Nc3 {[%clk 01:31:50]} {[%emt 00:00:04]} dxe4 {[%clk
01:31:23]} {[%emt 00:00:05]} 4. Nxe4 {[%clk 01:32:17]} {[%emt 00:00:04]} Nf6
{[%clk 01:31:45]} {[%emt 00:00:08]} 5. Nxf6+ {[%clk 01:32:44]} {[%emt
00:00:03]} exf6 {[%clk 01:32:08]} {[%emt 00:00:07]} 6. c3 {[%clk 01:33:10]}
{[%emt 00:00:03]} Bd6 {[%clk 01:32:31]} {[%emt 00:00:07]} 7. Bd3 {[%clk
01:33:35]} {[%emt 00:00:06]} O-O {[%clk 01:32:46]} {[%emt 00:00:15]} 8. Qc2
{[%clk 01:34:02]} {[%emt 00:00:03]} Re8+ {[%clk 01:32:23]} {[%emt 00:00:52]} 9.
Be3 {[%clk 01:34:26]} {[%emt 00:00:07]} h6 {[%clk 01:20:30]} {[%emt 00:12:23]}
10. Ne2 {[%clk 01:33:54]} {[%emt 00:01:01]} Nd7 {[%clk 01:20:41]} {[%emt
00:00:20]} 11. O-O {[%clk 01:34:14]} {[%emt 00:00:10]} Nf8 {[%clk 01:20:22]}
{[%emt 00:00:48]} 12. h3 {[%clk 01:34:32]} {[%emt 00:00:12]} Be6 {[%clk
01:18:58]} {[%emt 00:01:55]} 13. Nf4 {[%clk 01:34:11]} {[%emt 00:00:51]} Bxf4
{[%clk 01:14:57]} {[%emt 00:04:31]} 14. Bxf4 {[%clk 01:34:34]} {[%emt
00:00:07]} b5 {[%clk 01:15:21]} {[%emt 00:00:06]} 15. b3 {[%clk 01:28:44]}
{[%emt 00:06:20]} a5 {[%clk 01:04:59]} {[%emt 00:10:53]} 16. Rad1 {[%clk
01:22:37]} {[%emt 00:06:36]} a4 {[%clk 00:54:44]} {[%emt 00:10:45]} 17. c4
{[%clk 01:04:55]} {[%emt 00:18:11]} axb3 {[%clk 00:51:28]} {[%emt 00:03:46]} 18.
axb3 {[%clk 01:04:45]} {[%emt 00:00:41]} bxc4 {[%clk 00:51:33]} {[%emt
00:00:25]} 19. bxc4 {[%clk 01:05:00]} {[%emt 00:00:15]} Qa5 {[%clk 00:51:40]}
{[%emt 00:00:23]} 20. Rb1 {[%clk 00:53:05]} {[%emt 00:12:25]} Ng6 {[%clk
00:40:48]} {[%emt 00:11:22]} 21. Bd6 {[%clk 00:36:31]} {[%emt 00:17:05]} Nh4
{[%clk 00:35:08]} {[%emt 00:06:10]} 22. Bc5 {[%clk 00:33:43]} {[%emt 00:03:18]}
Qc7 {[%clk 00:19:17]} {[%emt 00:16:21]} 23. f4 {[%clk 00:28:08]} {[%emt
00:06:04]} g6 {[%clk 00:17:00]} {[%emt 00:02:48]} 24. g4 {[%clk 00:08:48]}
{[%emt 00:19:51]} g5 {[%clk 00:14:38]} {[%emt 00:02:51]} 25. Rbd1 {[%clk
00:04:40]} {[%emt 00:04:38]} gxf4 {[%clk 00:10:05]} {[%emt 00:05:03]} 26. Qf2
{[%clk 00:01:09]} {[%emt 00:04:02]} Ng6 {[%clk 00:09:34]} {[%emt 00:01:01]} 27.
d5 {[%clk 00:00:50]} {[%emt 00:00:49]} cxd5 {[%clk 00:06:24]} {[%emt 00:03:40]}
28. Bxg6 {[%clk 00:00:35]} {[%emt 00:00:45]} fxg6 {[%clk 00:06:37]} {[%emt
00:00:16]} 29. cxd5 {[%clk 00:00:49]} {[%emt 00:00:16]} Bf7 {[%clk 00:05:49]}
{[%emt 00:01:18]} 30. Bd4 {[%clk 00:00:32]} {[%emt 00:00:47]} Bxd5 {[%clk
00:04:53]} {[%emt 00:01:26]} 31. Qxf4 {[%clk 00:00:32]} {[%emt 00:00:29]} Ra2
{[%clk 00:02:38]} {[%emt 00:02:46]} 32. Bb2 {[%emt 00:00:41]} Qxf4 {[%clk
00:00:46]} {[%emt 00:02:13]} 33. Rxf4 {[%clk 00:00:59]} {[%emt 00:00:02]} Rxb2
{[%clk 00:00:39]} {[%emt 00:00:37]} 34. Rxd5 {[%clk 00:01:28]} Re1+ {[%clk
00:00:38]} {[%emt 00:00:32]} 35. Rf1 {[%clk 00:01:56]} {[%emt 00:00:01]} Rxf1+
{[%clk 00:00:35]} {[%emt 00:00:33]} 36. Kxf1 {[%clk 00:02:25]} {[%emt
00:00:01]} Rh2 {[%clk 00:00:41]} {[%emt 00:00:24]} 37. Rd3 {[%clk 00:01:55]}
{[%emt 00:01:01]} h5 {[%clk 00:00:39]} {[%emt 00:00:31]} 38. Kg1 {[%clk
00:02:01]} {[%emt 00:00:24]} Rc2 {[%clk 00:00:49]} {[%emt 00:00:19]} 39. gxh5
{[%clk 00:02:21]} {[%emt 00:00:11]} g5 {[%clk 00:00:57]} {[%emt 00:00:22]} 40.
Rd7 {[%clk 00:02:16]} {[%emt 00:00:35]} Rc4 {[%clk 00:00:46]} {[%emt 00:00:41]}
41. Kg2 {[%clk 00:01:23]} {[%emt 00:01:23]} Rh4 {[%clk 00:01:10]} {[%emt
00:00:07]} 42. Kg3 {[%clk 00:01:38]} {[%emt 00:00:14]} f5 {[%clk 00:01:15]}
{[%emt 00:00:25]} 43. Rd5 {[%clk 00:01:02]} {[%emt 00:01:06]} f4+ {[%clk
00:01:28]} {[%emt 00:00:18]} 44. Kg2 {[%clk 00:30:06]} {[%emt 00:01:25]} Rxh5
{[%clk 00:31:51]} {[%emt 00:00:07]} 45. h4 {[%clk 00:30:31]} {[%emt 00:00:06]}
f3+ {[%clk 00:32:17]} {[%emt 00:00:04]} 46. Kf2 {[%clk 00:30:44]} {[%emt
00:00:15]} Kg7 {[%clk 00:32:39]} {[%emt 00:00:09]} 47. Rxg5+ {[%clk 00:31:08]}
{[%emt 00:00:06]} Rxg5 {[%clk 00:33:05]} {[%emt 00:00:04]} 48. hxg5 {[%clk
00:31:35]} {[%emt 00:00:04]} Kg6 {[%clk 00:33:30]} {[%emt 00:00:05]} 49. Kxf3
{[%clk 00:32:02]} {[%emt 00:00:02]} Kxg5 {[%clk 00:33:55]} {[%emt 00:00:05]} 50.
Ke4 {[%emt 00:00:04]} 1/2-1/2

[Event "NJSK 2026 Jeugd B"]
[Site "Helmond, Netherlands"]
[Date "2026.04.27"]
[Round "3.3"]
[White "Darie, Aden"]
[Black "Baarspul, Bram"]
[Result "0-1"]
[TimeControl "90min/40moves + 30min + 30sec/move"]
[WhiteTitle "-"]
[BlackTitle "-"]
[WhiteFideId "1094831"]
[BlackFideId "40106187"]
[WhiteElo "2150"]
[BlackElo "2177"]

1. b3 {[%clk 01:30:44]} {[%emt 00:00:16]} e5 {[%clk 01:30:35]} {[%emt
00:00:25]} 2. Bb2 {[%clk 01:31:08]} {[%emt 00:00:06]} Nc6 {[%clk 01:30:59]}
{[%emt 00:00:06]} 3. e3 {[%clk 01:31:31]} {[%emt 00:00:08]} d5 {[%clk
01:30:42]} {[%emt 00:00:47]} 4. Bb5 {[%clk 01:31:52]} {[%emt 00:00:08]} Nge7
{[%clk 01:30:31]} {[%emt 00:00:41]} 5. Bxe5 {[%clk 01:32:12]} {[%emt 00:00:10]}
a6 {[%clk 01:30:54]} {[%emt 00:00:08]} 6. Bxc6+ {[%clk 01:32:37]} {[%emt
00:00:05]} Nxc6 {[%clk 01:31:19]} {[%emt 00:00:05]} 7. Bg3 {[%clk 01:33:00]}
{[%emt 00:00:07]} h5 {[%clk 01:31:19]} {[%emt 00:00:30]} 8. h4 {[%clk
01:33:24]} {[%emt 00:00:05]} d4 {[%clk 01:30:05]} {[%emt 00:01:44]} 9. Ne2
{[%clk 01:32:24]} {[%emt 00:01:31]} Bd6 {[%clk 01:27:49]} {[%emt 00:02:45]} 10.
Bxd6 {[%clk 01:16:39]} {[%emt 00:16:15]} Qxd6 {[%clk 01:28:14]} {[%emt
00:00:05]} 11. e4 {[%clk 01:07:15]} {[%emt 00:09:54]} d3 {[%clk 01:11:19]}
{[%emt 00:17:25]} 12. cxd3 {[%clk 01:02:51]} {[%emt 00:04:53]} Bg4 {[%clk
01:03:40]} {[%emt 00:08:10]} 13. f3 {[%clk 01:01:12]} {[%emt 00:02:10]} Nb4
{[%clk 00:48:17]} {[%emt 00:15:53]} 14. d4 {[%clk 00:53:35]} {[%emt 00:08:06]}
Nd3+ {[%clk 00:47:27]} {[%emt 00:01:21]} 15. Kf1 {[%clk 00:53:31]} {[%emt
00:00:34]} Qf6 {[%clk 00:35:32]} {[%emt 00:12:24]} 16. Kg1 {[%clk 00:48:18]}
{[%emt 00:05:42]} O-O-O {[%clk 00:29:08]} {[%emt 00:06:54]} 17. e5 {[%clk
00:44:47]} {[%emt 00:04:02]} Qb6 {[%clk 00:29:17]} {[%emt 00:00:21]} 18. Nbc3
{[%clk 00:29:02]} {[%emt 00:16:16]} Rxd4 {[%clk 00:18:13]} {[%emt 00:11:34]} 19.
Nxd4 {[%clk 00:25:11]} {[%emt 00:04:21]} Qxd4+ {[%clk 00:18:33]} {[%emt
00:00:09]} 20. Kh2 {[%clk 00:25:35]} {[%emt 00:00:07]} Nf2 {[%clk 00:08:15]}
{[%emt 00:10:49]} 21. Qe2 {[%clk 00:22:58]} {[%emt 00:03:06]} Nxh1 {[%clk
00:05:34]} {[%emt 00:03:11]} 22. Kxh1 {[%clk 00:21:32]} {[%emt 00:01:56]} Bf5
{[%clk 00:05:44]} {[%emt 00:00:19]} 23. g3 {[%clk 00:21:06]} {[%emt 00:00:56]}
Rd8 {[%clk 00:05:35]} {[%emt 00:00:39]} 24. Qe3 {[%clk 00:19:53]} {[%emt
00:01:43]} Qxd2 {[%clk 00:05:23]} {[%emt 00:00:43]} 25. Qxd2 {[%clk 00:20:18]}
{[%emt 00:00:05]} Rxd2 {[%clk 00:05:48]} {[%emt 00:00:05]} 26. Rd1 {[%clk
00:20:42]} {[%emt 00:00:04]} Rc2 {[%clk 00:04:58]} {[%emt 00:01:22]} 27. Nd5
{[%clk 00:21:06]} {[%emt 00:00:05]} Be6 {[%clk 00:04:41]} {[%emt 00:00:46]} 28.
Ne7+ {[%clk 00:20:43]} {[%emt 00:00:55]} Kb8 {[%clk 00:05:10]} {[%emt
00:00:01]} 29. f4 {[%clk 00:18:41]} {[%emt 00:02:31]} g6 {[%clk 00:04:45]}
{[%emt 00:00:55]} 30. Rd8+ {[%clk 00:19:07]} {[%emt 00:00:04]} Ka7 {[%clk
00:05:13]} {[%emt 00:00:03]} 31. Nc8+ {[%clk 00:19:18]} {[%emt 00:00:18]} Kb8
{[%clk 00:05:26]} {[%emt 00:00:17]} 32. Nd6+ {[%clk 00:18:55]} {[%emt
00:00:53]} Ka7 {[%clk 00:05:50]} {[%emt 00:00:06]} 33. Nc8+ {[%clk 00:19:04]}
{[%emt 00:00:21]} Bxc8 {[%clk 00:02:07]} {[%emt 00:04:13]} 34. Rxc8 {[%clk
00:19:28]} {[%emt 00:00:06]} a5 {[%clk 00:01:59]} {[%emt 00:00:39]} 35. Rf8
{[%clk 00:14:59]} {[%emt 00:04:58]} Rxa2 {[%clk 00:02:06]} {[%emt 00:00:23]} 36.
Rxf7 {[%clk 00:15:25]} {[%emt 00:00:05]} Rb2 {[%clk 00:01:47]} {[%emt
00:00:49]} 37. Rxc7 {[%clk 00:11:50]} {[%emt 00:04:04]} Rxb3 {[%clk 00:02:03]}
{[%emt 00:00:14]} 38. Kg2 {[%clk 00:07:38]} {[%emt 00:04:42]} a4 {[%clk
00:02:12]} {[%emt 00:00:21]} 39. Kf2 {[%clk 00:07:14]} {[%emt 00:00:54]} a3
{[%clk 00:02:19]} {[%emt 00:00:23]} 40. Rc1 {[%clk 00:06:50]} {[%emt 00:00:54]}
a2 {[%clk 00:02:17]} {[%emt 00:00:33]} 41. Ra1 {[%clk 00:07:16]} {[%emt
00:00:03]} Rb2+ {[%clk 00:01:17]} {[%emt 00:01:30]} 42. Kf3 {[%clk 00:01:11]}
{[%emt 00:06:35]} Kb8 {[%clk 00:27:05]} {[%emt 00:04:42]} 43. g4 {[%clk
00:29:37]} {[%emt 00:02:04]} hxg4+ {[%clk 00:23:41]} {[%emt 00:03:55]} 44. Kxg4
{[%clk 00:29:54]} {[%emt 00:00:12]} b5 {[%clk 00:22:42]} {[%emt 00:01:30]} 45.
Kg5 {[%clk 00:27:30]} {[%emt 00:02:53]} b4 {[%clk 00:10:21]} {[%emt 00:12:52]}
46. e6 {[%clk 00:26:16]} {[%emt 00:01:43]} b3 {[%clk 00:09:44]} {[%emt
00:01:07]} 47. e7 {[%clk 00:25:59]} {[%emt 00:00:48]} Re2 {[%clk 00:10:07]}
{[%emt 00:00:07]} 48. Kf6 {[%clk 00:26:24]} {[%emt 00:00:04]} Re4 {[%clk
00:08:33]} {[%emt 00:02:03]} 49. Kf7 {[%clk 00:25:45]} {[%emt 00:01:10]} Rxf4+
{[%clk 00:07:27]} {[%emt 00:01:37]} 50. Kxg6 {[%clk 00:26:08]} {[%emt
00:00:06]} Re4 {[%clk 00:07:51]} {[%emt 00:00:05]} 51. Kf7 {[%clk 00:26:17]}
{[%emt 00:00:21]} b2 {[%clk 00:07:55]} {[%emt 00:00:27]} 52. Rxa2 {[%clk
00:26:40]} {[%emt 00:00:07]} b1=Q {[%clk 00:08:20]} {[%emt 00:00:06]} 53. Rf2
{[%clk 00:26:35]} {[%emt 00:00:34]} Rxe7+ {[%clk 00:08:35]} {[%emt 00:00:15]}
0-1

[Event "NJSK 2026 Jeugd B"]
[Site "Helmond, Netherlands"]
[Date "2026.04.27"]
[Round "3.4"]
[White "Teianu, Maxim"]
[Black "Etienne, Ghilon"]
[Result "1-0"]
[TimeControl "90min/40moves + 30min + 30sec/move"]
[WhiteTitle "-"]
[BlackTitle "-"]
[WhiteFideId "40101967"]
[BlackFideId "1084267"]
[WhiteElo "2024"]
[BlackElo "1976"]

1. d4 {[%clk 01:30:58]} {[%emt 00:00:02]} Nf6 {[%clk 01:30:40]} {[%emt
00:00:20]} 2. c4 {[%clk 01:31:23]} {[%emt 00:00:05]} g6 {[%clk 01:31:07]}
{[%emt 00:00:04]} 3. Nc3 {[%clk 01:31:49]} {[%emt 00:00:03]} Bg7 {[%clk
01:31:32]} {[%emt 00:00:05]} 4. e4 {[%clk 01:32:15]} {[%emt 00:00:04]} d6
{[%clk 01:31:58]} {[%emt 00:00:04]} 5. Nf3 {[%clk 01:32:39]} {[%emt 00:00:07]}
O-O {[%clk 01:32:06]} {[%emt 00:00:21]} 6. Be2 {[%clk 01:32:58]} {[%emt
00:00:10]} e5 {[%clk 01:32:14]} {[%emt 00:00:23]} 7. Be3 {[%clk 01:33:23]}
{[%emt 00:00:06]} Nc6 {[%clk 01:32:38]} {[%emt 00:00:05]} 8. d5 {[%clk
01:33:29]} {[%emt 00:00:24]} Ne7 {[%clk 01:33:03]} {[%emt 00:00:06]} 9. Nd2
{[%clk 01:33:56]} {[%emt 00:00:03]} Ne8 {[%clk 01:20:26]} {[%emt 00:13:06]} 10.
f3 {[%clk 01:29:07]} {[%emt 00:05:18]} f5 {[%clk 01:19:26]} {[%emt 00:01:31]}
11. c5 {[%clk 01:27:48]} {[%emt 00:01:49]} dxc5 {[%clk 00:57:31]} {[%emt
00:22:25]} 12. Bxc5 {[%clk 01:21:55]} {[%emt 00:06:23]} Nd6 {[%clk 00:57:04]}
{[%emt 00:00:57]} 13. Qc2 {[%clk 01:02:04]} {[%emt 00:20:20]} a6 {[%clk
00:50:20]} {[%emt 00:07:14]} 14. O-O-O {[%clk 00:53:36]} {[%emt 00:08:59]} b6
{[%clk 00:49:06]} {[%emt 00:01:44]} 15. Be3 {[%clk 00:53:24]} {[%emt 00:00:41]}
Bb7 {[%clk 00:44:03]} {[%emt 00:05:35]} 16. Kb1 {[%clk 00:46:37]} {[%emt
00:07:16]} Qd7 {[%clk 00:43:05]} {[%emt 00:01:28]} 17. Rc1 {[%clk 00:44:40]}
{[%emt 00:02:26]} Kh8 {[%clk 00:38:02]} {[%emt 00:05:34]} 18. Rhd1 {[%clk
00:43:06]} {[%emt 00:02:03]} Rac8 {[%clk 00:36:16]} {[%emt 00:02:17]} 19. Qb3
{[%clk 00:39:43]} {[%emt 00:03:53]} h6 {[%clk 00:31:57]} {[%emt 00:04:48]} 20.
Rc2 {[%emt 00:04:19]} Ra8 {[%clk 00:28:48]} {[%emt 00:03:22]} 21. Rdc1 {[%clk
00:35:14]} {[%emt 00:01:28]} Rfc8 {[%clk 00:29:10]} {[%emt 00:00:08]} 22. Bd3
{[%clk 00:33:30]} {[%emt 00:02:13]} Rab8 {[%clk 00:25:50]} {[%emt 00:03:51]} 23.
Na4 {[%clk 00:32:28]} {[%emt 00:01:32]} Qd8 {[%clk 00:24:11]} {[%emt 00:02:09]}
24. Rc3 {[%clk 00:29:34]} {[%emt 00:03:24]} f4 {[%clk 00:24:15]} {[%emt
00:00:26]} 25. Bf2 {[%clk 00:29:53]} {[%emt 00:00:12]} Ng8 {[%clk 00:16:56]}
{[%emt 00:07:49]} 26. Bf1 {[%clk 00:24:47]} {[%emt 00:05:34]} Nf6 {[%clk
00:09:22]} {[%emt 00:08:05]} 27. g3 {[%clk 00:23:55]} {[%emt 00:01:22]} g5
{[%clk 00:09:41]} {[%emt 00:00:11]} 28. gxf4 {[%clk 00:23:56]} {[%emt
00:00:30]} exf4 {[%clk 00:09:12]} {[%emt 00:00:58]} 29. Bd4 {[%clk 00:17:13]}
{[%emt 00:07:13]} Nd7 {[%clk 00:09:17]} {[%emt 00:00:25]} 30. Bxg7+ {[%clk
00:17:37]} {[%emt 00:00:06]} Kxg7 {[%clk 00:09:43]} {[%emt 00:00:04]} 31. Bh3
{[%clk 00:17:55]} {[%emt 00:00:11]} Ba8 {[%clk 00:07:57]} {[%emt 00:02:15]} 32.
Qc2 {[%clk 00:15:10]} {[%emt 00:03:16]} Nb5 {[%clk 00:08:20]} {[%emt 00:00:07]}
33. Rd3 {[%clk 00:04:46]} {[%emt 00:10:55]} Qe7 {[%clk 00:05:48]} {[%emt
00:03:01]} 34. Nc3 {[%clk 00:04:34]} {[%emt 00:00:43]} Nd6 {[%clk 00:05:03]}
{[%emt 00:01:15]} 35. Bxd7 {[%clk 00:04:06]} {[%emt 00:00:57]} Qxd7 {[%clk
00:05:27]} {[%emt 00:00:07]} 36. e5 {[%clk 00:04:32]} {[%emt 00:00:04]} Nf5
{[%clk 00:05:20]} {[%emt 00:00:37]} 37. Nde4 {[%clk 00:04:39]} {[%emt
00:00:22]} Ne3 {[%clk 00:03:50]} {[%emt 00:02:01]} 38. Qe2 {[%clk 00:00:59]}
{[%emt 00:04:10]} Rd8 {[%clk 00:02:15]} {[%emt 00:02:06]} 39. h4 {[%clk
00:00:41]} {[%emt 00:00:47]} Qe7 {[%clk 00:01:44]} {[%emt 00:01:01]} 40. hxg5
{[%clk 00:01:00]} {[%emt 00:00:10]} Qxe5 {[%clk 00:01:32]} {[%emt 00:00:43]} 41.
gxh6+ {[%clk 00:01:24]} {[%emt 00:00:07]} Kh7 {[%clk 00:30:06]} {[%emt
00:01:55]} 42. Rg1 {[%clk 00:18:05]} {[%emt 00:13:48]} Rg8 {[%clk 00:30:12]}
{[%emt 00:00:24]} 43. Rg7+ {[%clk 00:18:10]} {[%emt 00:00:24]} Rxg7 {[%clk
00:28:21]} {[%emt 00:02:22]} 44. hxg7 {[%clk 00:18:33]} {[%emt 00:00:08]} Kxg7
{[%clk 00:27:45]} {[%emt 00:01:06]} 45. Nd1 {[%clk 00:12:56]} {[%emt 00:06:07]}
Nxd5 {[%clk 00:21:57]} {[%emt 00:06:18]} 46. Qg2+ {[%clk 00:13:16]} {[%emt
00:00:09]} Kf7 {[%clk 00:22:11]} {[%emt 00:00:17]} 47. Ndf2 {[%clk 00:11:39]}
{[%emt 00:02:06]} Rg8 {[%clk 00:17:29]} {[%emt 00:05:13]} 48. Ng4 {[%clk
00:11:54]} {[%emt 00:00:15]} Qg7 {[%clk 00:17:51]} {[%emt 00:00:08]} 49. Qc2
{[%clk 00:10:14]} {[%emt 00:02:09]} Re8 {[%clk 00:14:47]} {[%emt 00:03:34]} 50.
Rd2 {[%clk 00:06:20]} {[%emt 00:04:25]} a5 {[%clk 00:09:38]} {[%emt 00:05:40]}
51. Rh2 {[%clk 00:03:05]} {[%emt 00:03:42]} Kg8 {[%clk 00:01:37]} {[%emt
00:08:33]} 52. Rg2 {[%clk 00:02:55]} {[%emt 00:00:39]} 1-0

[Event "NJSK 2026 Jeugd B"]
[Site "Helmond, Netherlands"]
[Date "2026.04.27"]
[Round "3.5"]
[White "Hallibert, Emilien"]
[Black "Frederiks, Jesse"]
[Result "1/2-1/2"]
[TimeControl "90min/40moves + 30min + 30sec/move"]
[WhiteTitle "-"]
[BlackTitle "-"]
[WhiteFideId "1092561"]
[BlackFideId "1095790"]
[WhiteElo "1975"]
[BlackElo "2018"]

1. c4 {[%clk 01:30:53]} {[%emt 00:00:06]} e6 {[%clk 01:30:45]} {[%emt
00:00:15]} 2. Nc3 {[%clk 01:30:53]} {[%emt 00:00:30]} d5 {[%clk 01:30:32]}
{[%emt 00:00:43]} 3. e3 {[%clk 01:29:36]} {[%emt 00:01:47]} Nf6 {[%clk
01:29:57]} {[%emt 00:01:03]} 4. Nf3 {[%clk 01:29:36]} {[%emt 00:00:32]} Be7
{[%clk 01:28:47]} {[%emt 00:01:39]} 5. b3 {[%clk 01:29:34]} {[%emt 00:00:34]}
O-O {[%clk 01:28:16]} {[%emt 00:00:57]} 6. Be2 {[%clk 01:30:01]} {[%emt
00:00:06]} c5 {[%clk 01:27:52]} {[%emt 00:00:53]} 7. cxd5 {[%clk 01:30:16]}
{[%emt 00:00:17]} exd5 {[%clk 01:24:58]} {[%emt 00:03:23]} 8. d4 {[%clk
01:30:40]} {[%emt 00:00:06]} Nc6 {[%clk 01:21:44]} {[%emt 00:03:45]} 9. O-O
{[%clk 01:30:28]} {[%emt 00:00:42]} Re8 {[%clk 01:15:10]} {[%emt 00:07:03]} 10.
Bb2 {[%clk 01:26:53]} {[%emt 00:04:05]} Bf5 {[%clk 01:05:31]} {[%emt 00:10:10]}
11. Rc1 {[%clk 01:24:32]} {[%emt 00:02:51]} Ne4 {[%clk 00:53:37]} {[%emt
00:12:24]} 12. dxc5 {[%clk 01:20:35]} {[%emt 00:04:26]} Bf6 {[%clk 00:48:35]}
{[%emt 00:05:32]} 13. Nd4 {[%clk 01:16:05]} {[%emt 00:05:00]} Nxd4 {[%clk
00:42:31]} {[%emt 00:06:34]} 14. exd4 {[%clk 01:16:17]} {[%emt 00:00:18]} Bg5
{[%clk 00:38:51]} {[%emt 00:04:10]} 15. Rc2 {[%clk 01:08:32]} {[%emt 00:08:15]}
Nxf2 {[%clk 00:37:25]} {[%emt 00:01:56]} 16. Rxf2 {[%clk 01:07:35]} {[%emt
00:01:27]} Bxc2 {[%clk 00:37:30]} {[%emt 00:00:26]} 17. Qxc2 {[%clk 01:07:57]}
{[%emt 00:00:08]} Be3 {[%clk 00:37:48]} {[%emt 00:00:11]} 18. Bf3 {[%clk
00:56:09]} {[%emt 00:12:17]} Bxd4 {[%clk 00:36:08]} {[%emt 00:02:11]} 19. Ne2
{[%clk 00:55:09]} {[%emt 00:01:30]} Bxf2+ {[%clk 00:36:06]} {[%emt 00:00:31]}
20. Kxf2 {[%clk 00:55:34]} {[%emt 00:00:05]} Qh4+ {[%clk 00:35:20]} {[%emt
00:01:17]} 21. Ng3 {[%clk 00:55:13]} {[%emt 00:00:52]} Rad8 {[%clk 00:32:51]}
{[%emt 00:02:58]} 22. Qd2 {[%clk 00:50:44]} {[%emt 00:04:59]} Re6 {[%clk
00:16:07]} {[%emt 00:17:15]} 23. Qd4 {[%clk 00:44:45]} {[%emt 00:06:29]} Qxd4+
{[%clk 00:15:20]} {[%emt 00:01:16]} 24. Bxd4 {[%clk 00:44:51]} {[%emt
00:00:23]} b6 {[%clk 00:14:12]} {[%emt 00:01:39]} 25. Nf5 {[%clk 00:30:30]}
{[%emt 00:14:51]} bxc5 {[%clk 00:13:00]} {[%emt 00:01:43]} 26. Bxc5 {[%clk
00:30:08]} {[%emt 00:00:51]} f6 {[%clk 00:08:47]} {[%emt 00:04:43]} 27. b4
{[%clk 00:26:14]} {[%emt 00:04:23]} Kf7 {[%clk 00:08:25]} {[%emt 00:00:53]} 28.
a4 {[%clk 00:25:49]} {[%emt 00:00:55]} a6 {[%clk 00:06:15]} {[%emt 00:02:41]}
29. Nd4 {[%clk 00:25:55]} {[%emt 00:00:24]} Ree8 {[%clk 00:06:00]} {[%emt
00:00:44]} 30. a5 {[%clk 00:22:01]} {[%emt 00:04:24]} g6 {[%clk 00:05:19]}
{[%emt 00:01:12]} 31. b5 {[%clk 00:12:38]} {[%emt 00:09:52]} axb5 {[%clk
00:04:12]} {[%emt 00:01:37]} 32. Nxb5 {[%clk 00:12:45]} {[%emt 00:00:23]} Re6
{[%clk 00:03:50]} {[%emt 00:00:53]} 33. Bb6 {[%clk 00:12:52]} {[%emt 00:00:23]}
Rd7 {[%clk 00:03:58]} {[%emt 00:00:21]} 34. Nd4 {[%clk 00:10:03]} {[%emt
00:03:19]} Red6 {[%clk 00:04:14]} {[%emt 00:00:14]} 35. Bc5 {[%clk 00:10:11]}
{[%emt 00:00:22]} Ra6 {[%clk 00:04:28]} {[%emt 00:00:16]} 36. Bb6 {[%clk
00:07:57]} {[%emt 00:02:44]} Rd6 {[%clk 00:04:30]} {[%emt 00:00:29]} 37. Bc5
{[%clk 00:07:13]} {[%emt 00:01:14]} Rd7 {[%clk 00:04:43]} {[%emt 00:00:17]} 38.
Nb3 {[%clk 00:06:16]} {[%emt 00:01:26]} Kg7 {[%clk 00:04:33]} {[%emt 00:00:40]}
39. Be2 {[%clk 00:06:15]} {[%emt 00:00:30]} Ra8 {[%clk 00:04:31]} {[%emt
00:00:31]} 40. a6 {[%clk 00:06:14]} {[%emt 00:00:33]} Rc7 {[%clk 00:02:52]}
{[%emt 00:02:09]} 41. Bd4 {[%clk 00:04:55]} {[%emt 00:01:49]} 1/2-1/2